[Event "4NCL Div 1 2024-25"]
[Site "England"]
[Date "2024.11.23"]
[Round "1.43"]
[White "Taylor, Martin R"]
[Black "Gourlay, Iain"]
[Result "1/2-1/2"]
[Annotator "TA"]
[ECO "A13"]
[WhiteElo "2353"]
[BlackElo "2303"]
[PlyCount "76"]
[EventDate "2024.11.23"]
[EventType "team-tourn"]
[EventCountry "ENG"]
[SourceTitle "playchess.com"]
[Source "ChessBase"]
[SourceQuality "1"]
[TimeControl "40/6000+30:3000+30"]

{[%evp 9,76,23,28,24,8,24,23,10,14,4,11,12,10,13,14,22,22,21,31,24,29,23,25,20,20,12,21,26,19,18,28,18,37,29,31,27,30,30,42,29,29,31,28,14,13,7,20,16,27,12,16,5,32,11,32,31,36,27,31,40,33,25,25,7,16,0,0,0,0]} 1. c4 {[%emt 0:10:03]} e6 {[%emt 0:13:07]} 2. g3 {[%emt 0:00:27]} d5 {[%emt 0:00:21]} 3. Bg2 {[%emt 0:00:19]} Nf6 {[%emt 0:00:50]} 4. Nf3 {[%emt 0:00:11]} Bd6 {[%emt 0:00:36]} 5. O-O {[%emt 0:01:10]} O-O {[%emt 0:00:32]} 6. Qc2 {[%emt 0:02:01]} Nc6 {[%emt 0:04:56]} 7. d4 {[%emt 0:08:57]} dxc4 {[%emt 0:12:40]} 8. Qxc4 {[%emt 0:02:58]} e5 {[%emt 0:03:04]} 9. Nc3 {[%emt 0:29:12]} exd4 {[%emt 0:09:37]} 10. Nxd4 {[%emt 0:00:44]} Nxd4 {[%emt 0:03:47]} 11. Qxd4 {[%emt 0:00:07]} Qe7 {[%emt 0:10:52]} 12. Bf4 {[%emt 0:06:34]} Bxf4 {[%emt 0:03:54]} 13. Qxf4 {[%emt 0:00:35]} c6 {[%emt 0:00:47]} 14. Rad1 {[%emt 0:05:04]} Be6 {[%emt 0:00:49]} 15. e4 {[%emt 0:02:01]} Rfd8 {[%emt 0:03:39]} 16. e5 {[%emt 0:05:08]} Nd7 {[%emt 0:02:06]} 17. Rd6 {[%emt 0:13:18]} f6 {[%emt 0:06:06]} 18. exf6 {[%emt 0:02:03]} Nxf6 {[%emt 0:00:16]} 19. Rxd8+ {[%emt 0:06:44]} Rxd8 {[%emt 0:00:10]} 20. Qe3 {[%emt 0:00:31][%cal Of1e1]} a6 {[%emt 0:05:11]} 21. Re1 {[%emt 0:00:33]} (21. Bh3 $5 Re8 22. Re1 $11) 21... Re8 {[%emt 0:01:38] [#]} 22. Bh3 $1 {[%emt 0:05:31]} Kf7 {[%emt 0:00:27]} 23. Qb6 {[%emt 0:00:52]} Qd7 {[%emt 0:03:47]} 24. Rd1 {[%emt 0:01:23]} Qc8 {[%emt 0:06:58]} 25. Bxe6+ {[%emt 0:00:24]} Kxe6 {[%emt 0:07:57]} 26. Na4 {[%emt 0:02:22] And now Nc5+ would win.} (26. Qb3+ Ke7 27. Re1+ Kd8 28. Rxe8+ Nxe8 29. Ne4) 26... Kf7 {[%emt 0:01:50]} 27. Qb3+ {[%emt 0:00:47]} Kf8 {[%emt 0:01:14]} (27... Kg6 {is interesting.} 28. Nc5 Re7 29. Rd6 Qf5) 28. Nc5 {[%emt 0:01:15]} Re7 {[%emt 0:00:33]} 29. Kg2 {[%emt 0:01:10]} Nd5 {[%emt 0:00:29]} 30. h3 {[%emt 0:01:14]} Rf7 {[%emt 0:01:37]} 31. Qd3 {[%emt 0:00:44]} Kg8 {[%emt 0:00:24]} 32. Re1 {[%emt 0:00:57]} Qf8 {[%emt 0:01:37]} 33. Qd4 {[%emt 0:00:19]} Re7 {[%emt 0:01:23]} 34. Rxe7 {[%emt 0:00:43]} Qxe7 {[%emt 0:00:11]} 35. a3 {[%emt 0:00:44]} a5 {[%emt 0:01:14]} 36. h4 {[%emt 0:00:33]} h6 {[%emt 0:01:28]} 37. Kf1 {[%emt 0:00:30]} b6 {[%emt 0:01:12]} 38. Nd3 {[%emt 0:00:37]} Qe6 {[%emt 0:00:38]} 1/2-1/2

[Event "4NCL Div 1 2024-25"]
[Site "England"]
[Date "2024.11.23"]
[Round "1.44"]
[White "Berry, Neil"]
[Black "Rogers, Jonathan W"]
[Result "0-1"]
[Annotator "TA"]
[ECO "D08"]
[WhiteElo "2248"]
[BlackElo "2331"]
[PlyCount "70"]
[EventDate "2024.11.23"]
[EventType "team-tourn"]
[EventCountry "ENG"]
[SourceTitle "playchess.com"]
[Source "ChessBase"]
[SourceQuality "1"]
[TimeControl "40/6000+30:3000+30"]

{[%evp 9,70,48,45,18,31,25,35,25,38,8,0,4,5,0,15,-25,0,5,24,19,15,-86,0,-35,-21,-35,-37,-30,-24,-27,-24,-112,-43,-49,0,-11,0,-170,0,0,31,13,23,32,35,24,28,27,78,0,113,106,129,130,133,87,85,-29983,-84,-29984,-29985,-29989,-29990]} 1. d4 {[%emt 0:10:21]} d5 {[%emt 0:17:39]} 2. c4 {[%emt 0:01:42]} e5 {[%emt 0:00:11]} 3. dxe5 {[%emt 0:00:44]} Ne7 {[%emt 0:04:50][%cal Bg8e7,Be7g6,Bg6e5,Be5d3][%mdl 32]} 4. Nf3 {[%emt 0:05:34]} Nbc6 {[%emt 0:02:02]} 5. e3 {[%emt 0:22:57]} Bg4 {[%emt 0:05:10]} 6. Be2 {[%emt 0:11:45]} dxc4 {[%emt 0:11:44]} 7. Qa4 {[%emt 0:01:31]} Ng6 8. Nbd2 {[%emt 0:06:34]} Bb4 {[%emt 0:07:43]} 9. a3 {[%emt 0:04:23]} (9. O-O $5) 9... Bxd2+ {[%emt 0:05:55]} 10. Bxd2 {[%emt 0:00:51]} Bxf3 {[%emt 0:00:08]} 11. gxf3 {[%emt 0:08:23] and f4 should not be overlooked} Ngxe5 {[%emt 0:03:00]} 12. Bc3 {[%emt 0:00:32]} Qd5 {[%emt 0:03:40]} 13. Rd1 {[%emt 0:18:38]} Nd3+ {[%emt 0:01:38]} 14. Bxd3 {[%emt 0:01:31]} cxd3 {[%emt 0:00:08]} 15. Qg4 {[%emt 0:02:19]} (15. Qe4+ $11 Qxe4 16. fxe4) 15... Ne7 {[%emt 0:14:28]} (15... f5 $1 $17 {[%cal Rf5g4]} 16. Qh5+ g6) 16. e4 {[%emt 0:02:04]} Qc4 {[%emt 0:00:43]} 17. O-O {[%emt 0:00:55][%cal Of3f4]} (17. Bxg7 $2 Rg8 18. O-O Qe6 $19) (17. Qxg7 O-O-O $17) 17... h5 {[%emt 0:03:40]} 18. Qg5 {[%emt 0:01:13][%cal Og1h1]} Rh6 {[%emt 0:01:19]} 19. Kh1 $1 {[%emt 0:00:17][%cal Oc3b4]} Rg6 {[%emt 0:01:49]} 20. Qe3 {[%emt 0:00:37] [#]} (20. Qe5 $11) 20... Rd8 {[%emt 0:01:01]} ({Black should play} 20... O-O-O $1 $17 21. Rd2 f5) 21. Rd2 $15 {[%emt 0:02:06][%cal Of1d1]} Qe6 {[%emt 0:12:10]} (21... h4 $15) 22. Rxd3 {[%emt 0:00:46]} Qh3 {[%emt 0:01:12][%cal Rh3f1]} 23. Rxd8+ {[%emt 0:00:36]} Kxd8 {[%emt 0:00:06]} 24. Rg1 {[%emt 0:00:08]} Rxg1+ {[%emt 0:00:42]} 25. Kxg1 $11 {[%emt 0:00:06][%mdl 4096] Endgame KQB-KQN} Ng6 {[%emt 0:00:07]} 26. Bxg7 {[%emt 0:01:23]} Kc8 {[%emt 0:00:40] ( -> ...Nh4)} 27. Bf6 $1 {[%emt 0:00:35]} (27. Qxa7 $2 Nh4 28. Qa8+ Kd7 29. Qa4+ c6 30. Qd1+ Ke8 $19) 27... b6 {[%emt 0:00:07]} 28. b4 {[%emt 0:02:23]} Qe6 {[%emt 0:00:18] [#]} (28... a6 $11) 29. Qd4 {[%emt 0:00:45]} (29. Qc3 $1 $16) 29... Nf4 {[%emt 0:00:17]} (29... Qb3 $11 {remains equal.} 30. Qe3 Qd1+ 31. Kg2 Qd6) 30. Qe5 {[%emt 0:00:29]} Ne2+ {[%emt 0:01:00]} 31. Kf1 {[%emt 0:00:47]} Qc4 {[%emt 0:00:13] ( -> ...Nf4+)} 32. Kg2 {[%emt 0:01:37]} (32. Qxh5 $2 {is a self mate.} Nf4+ 33. Kg1 Qc1#) ({White should try} 32. Qf5+ Kb7 33. Kg2 (33. Qxh5 $2 Nf4+ 34. Kg1 Qc1#)) 32... Qc1 $16 {[%emt 0:01:19] ...Qg1+ would now be deadly.} 33. Bg5 $2 {[%emt 0:01:14][%mdl 8192]} (33. Qxh5 $2 {loses.} Nf4+ (33... Qxa3 34. Qxf7 Nf4+ 35. Kg3 $16) 34. Kg3 Nxh5+ $19) (33. Qf5+ $16 Kb7 (33... Kb8 34. Be5 $18) 34. Qd5+ (34. Qxh5 $2 Nf4+ 35. Kg3 Nxh5+ $19) 34... Kb8 35. Qd8+ (35. Qxh5 $2 Nf4+ 36. Kg3 Nxh5+ $19) (35. Qxf7 Qg1+ 36. Kh3 Qxf2 $11) 35... Kb7 36. Qd5+) 33... Qg1+ {[%emt 0:00:43]} 34. Kh3 {[%emt 0:00:02]} Qxf2 {[%emt 0:00:15][%cal Re2g1]} 35. Qf5+ {[%emt 0:01:31]} Kb8 {[%emt 0:00:10]} 0-1

[Event "4NCL Div 1 2024-25"]
[Site "England"]
[Date "2024.11.23"]
[Round "1.45"]
[White "Sowray, Peter J"]
[Black "Vijayakumar, Rishi"]
[Result "0-1"]
[Annotator "RC"]
[ECO "C77"]
[WhiteElo "2205"]
[BlackElo "2172"]
[PlyCount "88"]
[EventDate "2024.11.23"]
[EventType "team-tourn"]
[EventCountry "ENG"]
[SourceTitle "playchess.com"]
[Source "ChessBase"]
[SourceQuality "1"]
[TimeControl "40/6000+30:3000+30"]

1. e4 {[%emt 0:10:08]} e5 {[%emt 0:11:24]} 2. Nf3 {[%emt 0:00:06]} Nc6 {[%emt 0:00:44]} 3. Bb5 {[%emt 0:00:08]} a6 {[%emt 0:00:43]} 4. Ba4 {[%emt 0:00:08]} Nf6 {[%emt 0:00:37]} 5. d3 {[%emt 0:00:08]} b5 {[%emt 0:00:40]} 6. Bb3 {[%emt 0:00:11]} Bc5 {[%emt 0:00:25]} 7. Nc3 {[%emt 0:00:28]} d6 {[%emt 0:07:03]} 8. Nd5 {[%emt 0:00:54]} h6 {[%emt 0:01:14]} 9. c3 {[%emt 0:02:39]} Be6 {[%emt 0:05:21]} 10. Nxf6+ {[%emt 0:02:17]} Qxf6 {[%emt 0:00:05]} 11. Bxe6 {[%emt 0:00:18]} Qxe6 {[%emt 0:02:22]} 12. O-O {[%emt 0:00:43]} Bb6 {[%emt 0:00:43]} 13. d4 {[%emt 0:13:00]} Qg6 {[%emt 0:05:23]} 14. Re1 {[%emt 0:07:11]} O-O {[%emt 0:00:41]} 15. a4 exd4 {[%emt 0:15:13]} 16. cxd4 {[%emt 0:17:35]} Rae8 {[%emt 0:02:29]} 17. axb5 {[%emt 0:08:29]} axb5 {[%emt 0:00:11]} 18. d5 {[%emt 0:09:51]} Ne5 {[%emt 0:02:35]} 19. Nxe5 {[%emt 0:05:16]} Rxe5 {[%emt 0:00:42]} 20. Qd3 {[%emt 0:03:59]} f5 {[%emt 0:19:25]} 21. Be3 {[%emt 0:00:36]} Bxe3 {[%emt 0:04:29]} 22. fxe3 {[%emt 0:03:22]} fxe4 {[%emt 0:03:29]} 23. Qxb5 {[%emt 0:00:06]} Qf7 {[%emt 0:01:06]} 24. Rf1 {[%emt 0:00:41]} Rxd5 {[%emt 0:02:19]} 25. Rxf7 {[%emt 0:05:55]} Rxb5 {[%emt 0:00:05]} 26. Rxc7 {[%emt 0:00:09]} Rxb2 {[%emt 0:00:21]} 27. Rf1 {[%emt 0:03:34]} Ra8 {[%emt 0:00:30]} 28. g3 {[%emt 0:06:20]} Raa2 {[%emt 0:01:49]} 29. Rff7 {[%emt 0:00:08]} Rb1+ {[%emt 0:00:16]} 30. Rf1 {[%emt 0:00:05]} Rxf1+ {[%emt 0:00:35]} 31. Kxf1 {[%emt 0:00:02]} Rxh2 {[%emt 0:00:10]} 32. Rd7 {[%emt 0:02:50]} Rd2 {[%emt 0:00:10]} 33. Re7 {[%emt 0:00:26]} d5 {[%emt 0:00:09]} 34. Rd7 {[%emt 0:00:09]} Kh7 {[%emt 0:00:41]} 35. Rd6 {[%emt 0:00:42]} h5 {[%emt 0:00:12]} 36. Ra6 {[%emt 0:00:29]} g6 {[%emt 0:00:14]} 37. Rb6 {[%emt 0:02:56]} Kh6 {[%emt 0:00:15]} 38. Rd6 {[%emt 0:00:09]} Kg5 {[%emt 0:00:11]} 39. Ke1 {[%emt 0:00:16]} Rd3 {[%emt 0:04:31]} 40. Ke2 {[%emt 0:00:26]} Kf5 {[%emt 0:00:22]} 41. Kf2 {[%emt 0:52:01]} g5 {[%emt 0:50:30]} 42. Ke2 {[%emt 0:03:40]} Kg4 {[%emt 0:01:01]} 43. Rg6 {[%emt 0:00:35]} d4 {[%emt 0:00:55]} 44. exd4 {[%emt 0:01:19]} Rxd4 {[%emt 0:00:10]} 0-1

[Event "4NCL Div 1 2024-25"]
[Site "England"]
[Date "2024.11.23"]
[Round "1.46"]
[White "Shafi, Declan"]
[Black "Zhao, George"]
[Result "1-0"]
[Annotator "RC"]
[ECO "C09"]
[WhiteElo "2181"]
[BlackElo "2233"]
[PlyCount "147"]
[EventDate "2024.11.23"]
[EventType "team-tourn"]
[EventCountry "ENG"]
[SourceTitle "playchess.com"]
[Source "ChessBase"]
[SourceQuality "1"]
[TimeControl "40/6000+30:3000+30"]

1. e4 {[%emt 0:10:03]} e6 {[%emt 0:10:16]} 2. d4 {[%emt 0:00:04]} d5 {[%emt 0:00:12]} 3. Nd2 {[%emt 0:00:07]} c5 {[%emt 0:00:21]} 4. Ngf3 {[%emt 0:00:10]} Nc6 {[%emt 0:00:27]} 5. exd5 {[%emt 0:00:33]} exd5 {[%emt 0:00:13]} 6. Bb5 {[%emt 0:00:47]} cxd4 {[%emt 0:10:46]} 7. Nxd4 {[%emt 0:06:09]} Bd7 {[%emt 0:04:51]} 8. N2f3 {[%emt 0:04:19]} Bd6 {[%emt 0:07:43]} 9. O-O {[%emt 0:02:56]} Nge7 {[%emt 0:00:34]} 10. c3 {[%emt 0:02:52]} O-O {[%emt 0:02:10]} 11. Bd3 {[%emt 0:01:25]} Nxd4 {[%emt 0:05:17]} 12. Nxd4 {[%emt 0:01:21]} Ng6 {[%emt 0:02:33]} 13. Qh5 {[%emt 0:06:42]} Qc7 14. g3 {[%emt 0:12:25]} Be5 {[%emt 0:30:54]} 15. Nf3 {[%emt 0:08:16]} f6 {[%emt 0:15:25]} 16. Nh4 {[%emt 0:07:01]} f5 {[%emt 0:07:19]} 17. Nxf5 {[%emt 0:04:26]} Rf6 {[%emt 0:05:50]} 18. Nh4 {[%emt 0:04:51]} Nf8 {[%emt 0:01:31]} 19. Bg5 {[%emt 0:04:40]} Rf7 {[%emt 0:02:00]} 20. Be3 {[%emt 0:05:02]} Re8 {[%emt 0:01:23]} 21. Rfe1 {[%emt 0:02:55]} g6 {[%emt 0:00:22]} 22. Qd1 {[%emt 0:00:48]} b6 {[%emt 0:00:33]} 23. Qd2 {[%emt 0:01:07]} Bf6 {[%emt 0:00:38]} 24. Ng2 {[%emt 0:03:07]} Qc6 {[%emt 0:00:33]} 25. Nf4 {[%emt 0:01:29]} Bc8 {[%emt 0:00:29]} 26. Bf1 {[%emt 0:01:02]} Rd8 {[%emt 0:00:30]} 27. Bg2 {[%emt 0:00:21]} Bb7 {[%emt 0:00:09]} 28. Rad1 {[%emt 0:00:33]} Rfd7 {[%emt 0:00:31]} 29. Bd4 {[%emt 0:00:51]} Bxd4 {[%emt 0:00:47]} 30. Qxd4 {[%emt 0:00:08]} g5 {[%emt 0:00:32]} 31. Nd3 {[%emt 0:01:03]} Qd6 {[%emt 0:00:34]} 32. Qg4 {[%emt 0:01:46]} Rg7 {[%emt 0:00:19]} 33. Nb4 {[%emt 0:02:04]} Qc5 {[%emt 0:00:29]} 34. Qd4 {[%emt 0:00:51]} Rgd7 {[%emt 0:00:33]} 35. Re5 {[%emt 0:00:56]} h6 {[%emt 0:00:27]} 36. Bxd5+ {[%emt 0:03:33]} Bxd5 {[%emt 0:00:18]} 37. Rxd5 {[%emt 0:00:48]} Rxd5 {[%emt 0:00:33]} 38. Nxd5 {[%emt 0:00:09]} Qxd4 {[%emt 0:00:38]} 39. Rxd4 {[%emt 0:00:06]} Kf7 {[%emt 0:00:20]} 40. c4 {[%emt 0:02:32]} Ne6 {[%emt 0:00:17]} 41. Rd3 {[%emt 0:50:12]} g4 {[%emt 0:50:30]} 42. f3 {[%emt 0:06:41]} b5 {[%emt 0:00:00]} 43. cxb5 {[%emt 0:00:00]} Nc5 {[%emt 0:00:00]} 44. Rd1 {[%emt 0:00:00]} gxf3 {[%emt 0:00:00]} 45. Kf2 {[%emt 0:00:00]} Rb8 {[%emt 0:00:00]} 46. Nc3 {[%emt 0:00:00]} a6 {[%emt 0:00:00]} 47. Kxf3 {[%emt 0:00:00]} axb5 {[%emt 0:00:00]} 48. Rd5 {[%emt 0:00:00]} Ne6 {[%emt 0:00:00]} 49. Ne4 {[%emt 0:00:00]} b4 {[%emt 0:00:00]} 50. Rd7+ {[%emt 0:00:00]} Kg6 {[%emt 0:05:43]} 51. h4 {[%emt 0:00:00]} h5 {[%emt 0:00:00]} 52. Rd6 {[%emt 0:00:00]} Kf7 {[%emt 0:00:00]} 53. Ng5+ {[%emt 0:00:00]} Nxg5+ {[%emt 0:00:00]} 54. hxg5 {[%emt 0:00:00]} Ra8 {[%emt 0:00:00]} 55. Rb6 {[%emt 0:00:00]} Rxa2 {[%emt 0:00:00]} 56. Rxb4 {[%emt 0:00:00]} Ra1 {[%emt 0:00:00]} 57. Rb6 {[%emt 0:00:00]} Rf1+ {[%emt 0:00:00]} 58. Kg2 {[%emt 0:00:00]} Rb1 {[%emt 0:00:00]} 59. b4 {[%emt 0:00:00]} Kg7 {[%emt 0:00:00]} 60. b5 {[%emt 0:00:00]} Kf7 {[%emt 0:00:00]} 61. Rb8 {[%emt 0:00:00]} Kg7 {[%emt 0:00:00]} 62. b6 {[%emt 0:00:00]} Rb3 {[%emt 0:00:00]} 63. Kh3 {[%emt 0:00:00]} Rb2 {[%emt 0:00:00]} 64. g4 {[%emt 0:00:00]} hxg4+ {[%emt 0:00:00]} 65. Kxg4 {[%emt 0:00:00]} Rb5 {[%emt 0:00:00]} 66. Kh5 {[%emt 0:00:00]} Rc5 {[%emt 0:00:00]} 67. Rb7+ {[%emt 0:00:00]} Kg8 {[%emt 0:00:00]} 68. Rc7 {[%emt 0:00:00]} Rb5 {[%emt 0:00:00]} 69. b7 {[%emt 0:00:00]} Rb6 {[%emt 0:00:00]} 70. Rc8+ {[%emt 0:00:00]} Kh7 {[%emt 0:00:00]} 71. b8=Q {[%emt 0:00:00]} Rh6+ {[%emt 0:00:00]} 72. Kg4 {[%emt 0:00:00]} Rg6 {[%emt 0:00:00]} 73. Rh8+ {[%emt 0:00:00]} Kg7 {[%emt 0:00:00]} 74. Qg8# {[%emt 0:00:00]} 1-0

[Event "4NCL Div 1 2024-25"]
[Site "England"]
[Date "2024.11.23"]
[Round "1.47"]
[White "Hng, Mei-En Emmanuelle"]
[Black "Swanson, Stephen"]
[Result "0-1"]
[Annotator "RC"]
[ECO "B06"]
[WhiteElo "2135"]
[BlackElo "2143"]
[PlyCount "88"]
[EventDate "2024.11.23"]
[EventType "team-tourn"]
[EventCountry "ENG"]
[SourceTitle "playchess.com"]
[Source "ChessBase"]
[SourceQuality "1"]
[TimeControl "40/6000+30:3000+30"]

1. e4 {[%emt 0:10:11]} d6 {[%emt 0:10:13]} 2. d4 {[%emt 0:00:24]} g6 {[%emt 0:00:08]} 3. Bd3 {[%emt 0:01:04]} Bg7 {[%emt 0:01:27]} 4. Nf3 {[%emt 0:01:25]} e5 {[%emt 0:02:15]} 5. c3 {[%emt 0:01:55]} Nc6 {[%emt 0:03:16]} 6. Bg5 {[%emt 0:06:31]} f6 {[%emt 0:04:59]} 7. Be3 {[%emt 0:03:50]} Nh6 {[%emt 0:00:43]} 8. h3 {[%emt 0:05:09]} Nf7 {[%emt 0:02:52]} 9. O-O {[%emt 0:12:02]} O-O {[%emt 0:03:35]} 10. Bc4 {[%emt 0:15:29]} Qe7 {[%emt 0:09:32]} 11. Nbd2 Kh8 {[%emt 0:03:42]} 12. Re1 {[%emt 0:08:41]} Ncd8 {[%emt 0:09:30]} 13. b4 {[%emt 0:05:09]} b6 {[%emt 0:03:29]} 14. a4 {[%emt 0:05:22]} a5 {[%emt 0:09:46]} 15. bxa5 {[%emt 0:05:48]} Rxa5 {[%emt 0:02:36]} 16. Nb3 {[%emt 0:05:03]} exd4 {[%emt 0:01:55]} 17. cxd4 {[%emt 0:07:29]} Rh5 {[%emt 0:02:23]} 18. Bd2 {[%emt 0:04:48]} Ng5 {[%emt 0:05:45]} 19. Nxg5 {[%emt 0:04:02]} fxg5 {[%emt 0:00:07]} 20. Bf1 {[%emt 0:02:57]} Ne6 {[%emt 0:03:37]} 21. Be3 {[%emt 0:00:33]} Nf4 {[%emt 0:02:47]} 22. f3 {[%emt 0:01:45]} Be6 {[%emt 0:06:32]} 23. a5 {[%emt 0:00:30]} bxa5 {[%emt 0:01:13]} 24. Rxa5 {[%emt 0:00:21]} Qf7 {[%emt 0:05:33]} 25. d5 {[%emt 0:01:13]} Bxh3 {[%emt 0:05:07]} 26. gxh3 {[%emt 0:01:06]} Nxh3+ {[%emt 0:00:11]} 27. Bxh3 {[%emt 0:00:19]} Rxh3 {[%emt 0:00:08]} 28. Nd4 {[%emt 0:00:31]} g4 {[%emt 0:02:59]} 29. Ra2 {[%emt 0:00:31]} gxf3 {[%emt 0:02:20]} 30. Ne6 {[%emt 0:00:18]} Qe7 {[%emt 0:01:35]} 31. Bg5 {[%emt 0:00:49]} Rg3+ {[%emt 0:00:35]} 32. Kf1 {[%emt 0:00:18]} Rxg5 {[%emt 0:00:29]} 33. Nxf8 {[%emt 0:00:07]} Qxf8 {[%emt 0:01:02]} 34. Re3 {[%emt 0:00:39]} Rg3 {[%emt 0:00:43]} 35. Raa3 {[%emt 0:01:01]} Qc8 {[%emt 0:00:32]} 36. Rxf3 {[%emt 0:00:33]} Qh3+ {[%emt 0:00:15]} 37. Ke2 {[%emt 0:00:23]} Qg2+ {[%emt 0:02:12]} 38. Ke1 {[%emt 0:00:23]} Qh1+ {[%emt 0:01:21]} 39. Ke2 {[%emt 0:00:50]} Rg2+ {[%emt 0:00:16]} 40. Rf2 {[%emt 0:00:29]} Rxf2+ {[%emt 0:00:14]} 41. Kxf2 {[%emt 0:50:06]} Qxd1 {[%emt 0:50:12]} 42. Ra8+ {[%emt 0:00:09]} Bf8 {[%emt 0:00:10]} 43. Rxf8+ {[%emt 0:00:02]} Kg7 {[%emt 0:00:13]} 44. Rc8 {[%emt 0:00:26]} Qc1 {[%emt 0:01:29]} 0-1

[Event "4NCL Div 1 2024-25"]
[Site "England"]
[Date "2024.11.23"]
[Round "1.48"]
[White "Lampard, Alice"]
[Black "Brett, Andrew R"]
[Result "0-1"]
[Annotator "NA RC"]
[ECO "E51"]
[WhiteElo "1891"]
[BlackElo "2069"]
[PlyCount "140"]
[EventDate "2024.11.23"]
[EventType "team-tourn"]
[EventCountry "ENG"]
[SourceTitle "playchess.com"]
[Source "ChessBase"]
[SourceQuality "1"]
[TimeControl "40/6000+30:3000+30"]

1. d4 {[%emt 0:10:49]} Nf6 {[%emt 0:10:09]} 2. c4 {[%emt 0:00:35]} e6 {[%emt 0:00:06]} 3. Nc3 {[%emt 0:00:14]} Bb4 {[%emt 0:00:07]} 4. e3 {[%emt 0:00:49]} O-O {[%emt 0:00:14]} 5. Bd3 {[%emt 0:01:10]} d5 {[%emt 0:00:23]} 6. a3 {[%emt 0:03:55]} Be7 {[%emt 0:02:19]} 7. Nf3 {[%emt 0:02:58]} dxc4 {[%emt 0:00:12]} 8. Bxc4 {[%emt 0:00:24]} c5 {[%emt 0:00:05]} 9. O-O {[%emt 0:04:20]} a6 {[%emt 0:01:01]} 10. dxc5 {[%emt 0:08:55]} Qxd1 {[%emt 0:00:32]} 11. Rxd1 {[%emt 0:00:12]} Bxc5 {[%emt 0:00:14]} 12. b4 {[%emt 0:01:19]} Be7 {[%emt 0:01:55]} 13. Bb2 {[%emt 0:09:01]} b5 {[%emt 0:01:17]} 14. Bf1 {[%emt 0:02:32]} Bb7 {[%emt 0:00:53]} 15. Nd4 {[%emt 0:04:48]} Nc6 {[%emt 0:04:57]} 16. Nxc6 {[%emt 0:03:20]} Bxc6 {[%emt 0:00:09]} 17. Ne2 {[%emt 0:03:25]} Rfc8 {[%emt 0:01:30]} 18. Rac1 {[%emt 0:02:56]} Bd5 {[%emt 0:04:58]} 19. Nd4 {[%emt 0:04:34]} Bc4 20. Be2 {[%emt 0:08:07]} Rab8 {[%emt 0:13:54]} 21. h3 {[%emt 0:05:51]} h6 {[%emt 0:04:06]} 22. Bf1 {[%emt 0:08:41]} Nd5 {[%emt 0:01:29]} 23. Ne2 {[%emt 0:02:36]} f6 {[%emt 0:04:51]} 24. Nd4 {[%emt 0:01:08]} Kf7 {[%emt 0:00:45]} 25. g4 {[%emt 0:00:47]} Rc7 {[%emt 0:04:47]} 26. Bg2 {[%emt 0:01:14]} Rbc8 {[%emt 0:00:49]} 27. Be4 {[%emt 0:01:10]} Nb6 {[%emt 0:01:22]} 28. Bc2 {[%emt 0:06:57]} g6 {[%emt 0:01:32]} 29. Bb3 {[%emt 0:02:32]} e5 {[%emt 0:50:24]} 30. Bc2 {[%emt 0:06:07]} exd4 {[%emt 0:00:00]} 31. Bxd4 {[%emt 0:00:06]} Nd7 {[%emt 0:00:00]} 32. Be4 {[%emt 0:00:23]} Be6 {[%emt 0:00:00]} 33. Bb2 {[%emt 0:01:05]} Rxc1 {[%emt 0:00:00]} 34. Rxc1 {[%emt 0:00:37]} Rxc1+ {[%emt 0:00:00]} 35. Bxc1 {[%emt 0:00:02]} Nb6 {[%emt 0:00:00]} 36. f4 {[%emt 0:00:47]} Bd5 {[%emt 0:00:00]} 37. Bd3 {[%emt 0:00:16]} g5 {[%emt 0:00:00]} 38. e4 {[%emt 0:00:42]} Bc4 {[%emt 0:00:00]} 39. Bc2 {[%emt 0:00:10]} Nd7 {[%emt 0:00:00]} 40. Kf2 {[%emt 0:00:45]} Bd8 {[%emt 0:00:00]} 41. Bd2 {[%emt 0:53:05]} Bb6+ {[%emt 0:10:38]} 42. Kg2 {[%emt 0:00:26]} Bd4 {[%emt 0:00:15]} 43. a4 {[%emt 0:00:43]} Kg7 {[%emt 0:00:28]} 44. axb5 {[%emt 0:01:23]} axb5 {[%emt 0:00:07]} 45. Kg3 {[%emt 0:00:33]} gxf4+ {[%emt 0:00:20]} 46. Bxf4 {[%emt 0:00:00]} Be5 {[%emt 0:00:00]} 47. h4 {[%emt 0:00:00]} Kg6 {[%emt 0:00:00]} 48. Kf3 {[%emt 0:00:00]} Nf8 {[%emt 0:00:00]} 49. Be3 {[%emt 0:00:00]} Ne6 {[%emt 0:00:00]} 50. Bb1 {[%emt 0:00:00]} Kg7 {[%emt 0:00:00]} 51. Kf2 {[%emt 0:00:00]} Nf4 {[%emt 0:00:00]} 52. Bd2 {[%emt 0:00:00]} Ng6 {[%emt 0:00:00]} 53. g5 {[%emt 0:00:00]} fxg5 {[%emt 0:00:00]} 54. hxg5 {[%emt 0:00:00]} h5 {[%emt 0:00:00]} 55. Bc2 {[%emt 0:00:00]} h4 {[%emt 0:00:00]} 56. Bd1 {[%emt 0:00:00]} Bg3+ {[%emt 0:00:00]} 57. Kf3 {[%emt 0:00:00]} Bf1 {[%emt 0:00:00]} 58. Bc3+ {[%emt 0:00:00]} Ne5+ {[%emt 0:00:00]} 59. Ke3 {[%emt 0:00:00]} Kg6 {[%emt 0:00:00]} 60. Bxe5 {[%emt 0:00:00]} Bxe5 {[%emt 0:00:00]} 61. Kf2 {[%emt 0:00:00]} Bc4 {[%emt 0:00:00]} 62. Bg4 {[%emt 0:00:36]} Kxg5 {[%emt 0:00:00]} 63. Bf5 {[%emt 0:00:08]} Kf4 {[%emt 0:00:00]} 64. Kg2 {[%emt 0:00:14]} Bd6 {[%emt 0:00:00]} 65. Kh3 {[%emt 0:00:25]} Be7 {[%emt 0:00:00]} 66. Bg6 {[%emt 0:00:33]} Bd3 {[%emt 0:00:00]} 67. Bh5 {[%emt 0:01:24]} Bxe4 {[%emt 0:00:00]} 68. Be2 {[%emt 0:00:09]} Bf5+ {[%emt 0:00:00]} 69. Kh2 {[%emt 0:00:16]} Bd7 {[%emt 0:00:00]} 70. Bf1 {[%emt 0:01:29]} Bxb4 {[%emt 0:00:00]} 0-1